bitfinex/quotes_ETHUSD_20250913
["timestamp","ask_amount","ask_price","bid_price","bid_amount"]
[1757726587773,51.40877966,4716.9,4716.8,44.3926]
[1757726587977,51.51817918,4716.9,4716.8,44.3926]
[1757726588376,51.51817918,4716.9,4716.8,44.4982]
[1757726589402,52.74817918,4716.9,4716.8,44.4982]
[1757726590608,53.97817918,4716.9,4716.8,44.3327]
[1757726591406,53.97817918,4716.9,4716.8,44.4982]
[1757726591874,55.20817918,4716.9,4716.8,44.3327]
[1757726593185,56.43817918,4716.9,4716.8,14.3327]
[1757726593872,56.43817918,4716.9,4716.8,44.3327]
[1757726594322,56.43817918,4716.9,4716.8,40.4719]
[1757726594523,57.66817918,4716.9,4716.8,41.676]
[1757726594728,58.11687918,4716.9,4716.8,41.676]
[1757726595237,57.66817918,4716.9,4716.8,44.2863]
[1757726595889,58.89817918,4716.9,4716.8,44.2863]
[1757726596301,58.89817918,4716.9,4716.8,14.2863]
[1757726596913,58.89817918,4716.9,4716.8,44.2863]
[1757726597113,58.90017918,4716.9,4716.8,41.676]
[1757726597432,60.13017918,4716.9,4716.8,44.3919]
[1757726597590,60.13017918,4716.9,4716.8,44.5574]
[1757726598707,61.36017918,4716.9,4716.8,44.5574]
[1757726599600,61.36017918,4716.9,4716.8,44.3909]
[1757726600093,62.59017918,4716.9,4716.8,44.3909]
[1757726601835,63.82017918,4716.9,4716.8,44.3909]
[1757726603015,65.05017918,4716.9,4716.8,44.3909]
[1757726603614,65.05017918,4716.9,4716.8,14.3909]
[1757726604038,65.36587918,4716.9,4716.8,5.1876]
[1757726604346,65.79997918,4716.9,4716.8,11.674]
[1757726604640,67.02997918,4716.9,4716.8,41.674]
[1757726604810,67.02997918,4716.9,4716.8,38.674]
[1757726605567,67.02997918,4716.9,4716.8,41.674]
[1757726605842,68.25997918,4716.9,4716.8,41.674]
[1757726606011,67.51017918,4716.9,4716.8,41.674]
[1757726606847,67.51017918,4716.9,4716.8,11.674]
[1757726607047,67.81127918,4716.9,4716.8,41.674]
[1757726607342,69.50777918,4716.9,4716.8,41.674]
[1757726608513,71.79547918,4716.9,4716.8,38.082]
[1757726608871,73.02547918,4716.9,4716.8,41.674]
[1757726609018,70.73777918,4716.9,4716.8,41.674]
[1757726610179,71.96777918,4716.9,4716.8,41.674]
[1757726610895,74.25547918,4716.9,4716.8,8.082]
[1757726611048,76.41537637,4716.9,4716.8,10.299]
[1757726611386,76.41537637,4716.9,4716.8,6.707]
[1757726611560,77.64537637,4716.9,4716.8,10.299]
[1757726612184,78.88899672,4716.9,4716.8,10.299]
[1757726612881,80.11899672,4716.9,4716.8,10.299]
[1757726614257,81.34899672,4716.9,4716.8,10.299]
[1757726614861,81.34899672,4716.9,4716.8,6.707]
[1757726615353,81.34899672,4716.9,4716.8,10.298]
[1757726615698,82.57899672,4716.9,4716.8,10.298]
[1757726617189,83.80899672,4716.9,4716.8,10.299]
[1757726618455,85.03899672,4716.9,4716.8,10.299]
[1757726619997,86.26899672,4716.9,4716.8,10.299]
[1757726621557,87.49899672,4716.9,4716.8,10.299]
[1757726622986,88.72899672,4716.9,4716.8,10.299]
[1757726624311,88.72899672,4716.9,4716.8,10.298]
[1757726624461,89.95899672,4716.9,4716.8,10.298]
[1757726625889,91.18899672,4716.9,4716.8,10.298]
[1757726627387,92.41899672,4716.9,4716.8,10.298]
[1757726628770,93.64899672,4716.9,4716.8,10.298]
[1757726630104,94.87899672,4716.9,4716.8,10.298]
[1757726631583,96.10899672,4716.9,4716.8,10.298]
[1757726632988,97.33899672,4716.9,4716.8,10.297]
[1757726634295,98.56899672,4716.9,4716.8,10.297]
[1757726635678,99.79899672,4716.9,4716.8,10.297]
[1757726637025,101.02899672,4716.9,4716.8,10.297]
[1757726638912,102.25899672,4716.9,4716.8,10.297]
[1757726640181,99.20369672,4716.9,4716.8,10.297]
[1757726640414,100.43369672,4716.9,4716.8,10.297]
[1757726640919,100.72319672,4716.9,4716.8,10.297]
[1757726641114,100.72319672,4716.9,4716.8,6.707]
[1757726641418,100.43369672,4716.9,4716.8,10.296]
[1757726641880,101.66369672,4716.9,4716.8,10.296]
[1757726642082,102.40289672,4716.9,4716.8,10.296]
[1757726642486,101.66369672,4716.9,4716.8,10.296]
[1757726643308,102.89369672,4716.9,4716.8,10.296]
[1757726643614,103.63289672,4716.9,4716.8,10.296]
[1757726644509,102.89369672,4716.9,4716.8,6.707]
[1757726644710,104.12369672,4716.9,4716.8,10.296]
[1757726645009,104.57339672,4716.9,4716.8,10.296]
[1757726645505,104.86289672,4716.9,4716.8,10.296]
[1757726646105,106.09289672,4716.9,4716.8,10.296]
[1757726646423,108.46779672,4716.9,4716.8,10.296]
[1757726646811,108.46779672,4716.9,4716.8,6.707]
[1757726647025,108.46779672,4716.9,4716.8,10.295]
[1757726647220,108.46779672,4716.9,4716.8,1.626]
[1757726647516,109.69779672,4716.9,4716.8,5.214]
[1757726648916,110.92779672,4716.9,4716.8,5.214]
[1757726650217,112.15779672,4716.9,4716.8,5.214]
[1757726651526,113.38779672,4716.9,4716.8,5.214]
[1757726652600,113.38779672,4716.9,4716.8,1.626]
[1757726652805,113.38779672,4716.9,4716.8,5.213]
[1757726653115,114.61779672,4716.9,4716.8,5.213]
[1757726655062,115.84779672,4716.9,4716.8,5.213]
[1757726657136,117.07779672,4716.9,4716.8,5.213]
[1757726658463,118.30779672,4716.9,4716.8,5.213]
[1757726658625,118.30779672,4716.9,4716.8,5.1525]
[1757726658821,115.48319672,4716.9,4716.8,5.1525]
[1757726659026,114.40169672,4716.9,4716.8,7.8808]
[1757726659227,112.24179953,4716.9,4716.8,7.8808]
[1757726659553,113.03379953,4716.9,4716.8,7.8808]
[1757726659726,117.30749953,4716.9,4716.8,5.1525]
[1757726659926,1.24362035,4716.4,4716.3,0.001]
[1757726660166,2.80798239,4716.4,4716.3,0.001]
[1757726660342,5.85168239,4716.4,4716.3,3.588]
[1757726661048,5.85168239,4716.4,4716.3,0.001]
[1757726661253,7.08168239,4716.4,4716.3,3.587]
[1757726662678,8.31168239,4716.4,4716.3,0.001]
[1757726663769,11.89768239,4716.4,4716.3,0.001]
[1757726663957,14.89768239,4716.4,4716.3,0.001]
[1757726664256,16.24646012,4716.4,4716.3,0.001]
[1757726665687,17.47646012,4716.4,4716.3,0.001]
[1757726666376,17.35768239,4716.4,4716.3,0.001]
[1757726666676,7.23158239,4716.4,4716.3,0.001]
[1757726666878,6.93598239,4716.4,4716.3,0.2658]
[1757726667082,8.95798239,4716.4,4716.3,0.2658]
[1757726667651,8.95798239,4716.4,4716.3,0.001]
[1757726667865,8.16598239,4716.4,4716.3,0.001]
[1757726668067,8.16598239,4716.4,4716.3,2.7293]
[1757726668263,8.95798239,4716.4,4716.3,2.7293]
[1757726668450,10.18798239,4716.4,4716.3,2.7293]
[1757726668651,10.18798239,4716.4,4716.3,0.2658]
[1757726669169,10.06362035,4716.4,4716.3,2.7293]
[1757726669370,9.612,4716.4,4716.3,2.7293]
[1757726669588,10.06362035,4716.4,4716.3,2.7293]
[1757726669767,10.50162035,4716.4,4716.3,4.3553]
[1757726669963,10.50162035,4716.4,4716.3,4.5208]
[1757726670797,11.29362035,4716.4,4716.3,4.5208]
[1757726670959,12.52362035,4716.4,4716.3,4.5208]
[1757726671161,12.52362035,4716.4,4716.3,8.1068]
[1757726672493,13.75362035,4716.4,4716.3,8.1068]
[1757726673759,13.75362035,4716.4,4716.3,7.9413]
[1757726673963,14.98362035,4716.4,4716.3,7.9413]
[1757726675286,16.21362035,4716.4,4716.3,7.9413]
[1757726676793,17.44362035,4716.4,4716.3,7.9413]
[1757726677783,17.44362035,4716.4,4716.3,7.9393]
[1757726678194,18.67362035,4716.4,4716.3,7.9393]
[1757726678495,18.222,4716.4,4716.3,11.1048]
[1757726679565,19.452,4716.4,4716.3,11.1048]
[1757726679967,18.7656,4716.4,4716.3,11.1048]
[1757726680402,18.66,4716.4,4716.3,11.1048]
[1757726680571,18.66,4716.4,4716.3,41.1048]
[1757726681003,19.89,4716.4,4716.3,41.1048]
[1757726682366,21.12,4716.4,4716.3,41.2104]
[1757726683905,22.35,4716.4,4716.3,41.2104]
[1757726684371,18.5509984,4716.4,4716.3,41.45093112]
[1757726685199,19.7809984,4716.4,4716.3,41.45093112]
[1757726686594,21.0109984,4716.4,4716.3,41.45093112]
[1757726686790,21.0109984,4716.4,4716.3,37.86693112]
[1757726687027,21.0109984,4716.4,4716.3,41.44893112]
[1757726687633,21.0109984,4716.4,4716.3,41.86713645]
[1757726687791,21.0109984,4716.4,4716.3,42.98706718]
[1757726687997,22.2409984,4716.4,4716.3,42.98706718]
[1757726689420,23.4709984,4716.4,4716.3,42.76957947]
[1757726690792,24.7009984,4716.4,4716.3,38.76937414]
[1757726691096,24.7009984,4716.4,4716.3,38.15234302]
[1757726691295,24.7009984,4716.4,4716.3,38.0419]
[1757726691527,24.7009984,4716.4,4716.3,41.2074]
[1757726692114,25.9309984,4716.4,4716.3,41.2074]
[1757726692609,25.9309984,4716.4,4716.3,42.44217965]
[1757726692823,25.9309984,4716.4,4716.3,42.90019848]
[1757726693026,25.9309984,4716.4,4716.3,43.01063306]
[1757726693517,27.1609984,4716.4,4716.3,43.01063306]
[1757726694946,28.3909984,4716.4,4716.3,43.01063306]
[1757726695147,28.3909984,4716.4,4716.3,42.46225341]
[1757726695348,23.8124743,4716.4,4716.3,12.79314535]
[1757726695553,23.8124743,4716.4,4716.3,42.55261423]
[1757726695762,22.2862996,4716.4,4716.3,42.55261423]
[1757726695951,21.70779992,4716.4,4716.3,42.97238587]
[1757726696133,21.70779992,4716.4,4716.3,45.61338587]
[1757726696453,22.93779992,4716.4,4716.3,45.61338587]
[1757726698246,24.16779992,4716.4,4716.3,45.61338587]
[1757726698447,24.16779992,4716.4,4716.3,46.24874958]
[1757726698957,21.98106736,4716.4,4716.3,46.70676841]
[1757726699962,23.21106736,4716.4,4716.3,46.70676841]
[1757726700167,10.45706073,4716.4,4716.3,44.27736841]
[1757726700490,4.5301515,4716.4,4716.3,42.81417363]
[1757726700801,0.002,4716.8,4716.7,1.34037965]
[1757726700965,0.002,4716.8,4716.7,38.37739848]
[1757726701288,0.002,4716.8,4716.7,41.12169848]
[1757726702004,111.58017918,4716.9,4716.8,3.792]
[1757726702162,111.58017918,4716.9,4716.8,33.792]
[1757726702478,111.58017918,4716.9,4716.8,36.75378771]
[1757726702667,112.81017918,4716.9,4716.8,37.73508883]
[1757726703487,112.81017918,4716.9,4716.8,7.73508883]
[1757726703791,112.81017918,4716.9,4716.8,37.73508883]
[1757726703970,114.04017918,4716.9,4716.8,37.73508883]
[1757726704858,114.04017918,4716.9,4716.8,40.85507]
[1757726705174,114.04017918,4716.9,4716.8,55.43393736]
[1757726705378,115.27017918,4716.9,4716.8,57.05893736]
[1757726705987,115.27017918,4716.9,4716.8,38.49294965]
[1757726706190,115.27017918,4716.9,4716.8,36.49214965]
[1757726706487,115.27017918,4716.9,4716.8,40.28414965]
[1757726706704,117.21837918,4716.9,4716.8,32.36577]
[1757726706862,117.21837918,4716.9,4716.8,35.94377]
[1757726707088,117.21837918,4716.9,4716.8,38.94377]
[1757726708119,118.44837918,4716.9,4716.8,38.94377]
[1757726709111,120.71967918,4716.9,4716.8,35.94377]
[1757726709499,121.94967918,4716.9,4716.8,35.94377]
[1757726709899,119.67837918,4716.9,4716.8,38.94377]
[1757726710653,121.94967918,4716.9,4716.8,38.94377]
[1757726710804,123.17967918,4716.9,4716.8,38.94377]
[1757726711324,123.17967918,4716.9,4716.8,35.94377]
[1757726711529,123.17967918,4716.9,4716.8,38.94377]
[1757726711835,123.17967918,4716.9,4716.8,8.94377]
[1757726712193,124.40967918,4716.9,4716.8,8.94377]
[1757726712393,124.40967918,4716.9,4716.8,5.36577]
[1757726712709,124.40967918,4716.9,4716.8,8.94277]
[1757726712888,124.40967918,4716.9,4716.8,38.94277]
[1757726713527,124.40967918,4716.9,4716.8,1.625]
[1757726713691,127.79957637,4716.9,4716.8,3.145]
[1757726713892,125.63967918,4716.9,4716.8,3.145]
[1757726714227,125.63967918,4716.9,4716.8,1.625]
[1757726714390,125.63967918,4716.9,4716.8,5.189]
[1757726714593,125.63967918,4716.9,4716.8,1.625]
[1757726714811,125.63967918,4716.9,4716.8,5.202]
[1757726715327,126.86967918,4716.9,4716.8,10.281]
[1757726716621,128.09967918,4716.9,4716.8,13.281]
[1757726717895,130.25957637,4716.9,4716.8,13.281]
[1757726718097,131.48957637,4716.9,4716.8,13.281]
[1757726718426,129.32967918,4716.9,4716.8,13.281]
[1757726718867,129.32967918,4716.9,4716.8,13.282]
[1757726719437,131.80329953,4716.9,4716.8,6.704]
[1757726719660,131.80329953,4716.9,4716.8,10.282]
[1757726719930,133.96319672,4716.9,4716.8,10.282]
[1757726720970,135.19319672,4716.9,4716.8,10.282]
[1757726722377,136.42319672,4716.9,4716.8,10.282]
[1757726723675,137.65319672,4716.9,4716.8,6.704]
[1757726724083,137.65319672,4716.9,4716.8,10.282]
[1757726724959,138.88319672,4716.9,4716.8,10.282]
[1757726726346,140.11319672,4716.9,4716.8,10.282]
[1757726727686,141.34319672,4716.9,4716.8,10.282]
[1757726727984,138.39129953,4716.9,4716.8,10.282]
[1757726728858,139.18329953,4716.9,4716.8,10.282]
[1757726729059,140.41329953,4716.9,4716.8,10.282]
[1757726730150,139.96167918,4716.9,4716.8,10.282]
[1757726730340,138.57999953,4716.9,4716.8,10.282]
[1757726731281,143.84919672,4716.9,4716.8,10.282]
[1757726731662,145.07919672,4716.9,4716.8,10.282]
[1757726733186,146.30919672,4716.9,4716.8,10.282]
[1757726734478,147.53919672,4716.9,4716.8,10.282]
[1757726734848,147.53919672,4716.9,4716.8,6.704]
[1757726735195,147.53919672,4716.9,4716.8,10.283]
[1757726735898,148.76919672,4716.9,4716.8,10.283]
[1757726737257,149.99919672,4716.9,4716.8,10.283]
[1757726737979,149.99919672,4716.9,4716.8,5.203]
[1757726738682,151.22919672,4716.9,4716.8,5.203]
[1757726740187,152.45919672,4716.9,4716.8,5.203]
[1757726741449,153.68919672,4716.9,4716.8,5.203]
[1757726742271,150.57989672,4716.9,4716.8,5.203]
[1757726742780,152.15027637,4716.9,4716.8,5.203]
[1757726743160,152.60189672,4716.9,4716.8,5.203]
[1757726743692,150.00889953,4716.9,4716.8,5.203]
[1757726744200,151.70329953,4716.9,4716.8,5.203]
[1757726745795,155.37729953,4716.9,4716.8,1.626]
[1757726745979,155.37729953,4716.9,4716.8,5.203]
[1757726747201,156.60729953,4716.9,4716.8,5.203]
[1757726747754,158.76719672,4716.9,4716.8,5.203]
[1757726747949,158.76719672,4716.9,4716.8,1.626]
[1757726748169,158.76719672,4716.9,4716.8,4.612]
[1757726748587,159.99719672,4716.9,4716.8,4.612]
[1757726749251,169.23103122,4716.9,4716.8,0.001]
[1757726749465,169.34986001,4716.9,4716.8,0.001]
[1757726749667,4.24362035,4716.4,4716.3,0.001]
[1757726749869,8.76768238,4716.4,4716.3,0.001]
[1757726750092,8.18468238,4716.4,4716.3,0.001]
[1757726751591,9.41468238,4716.4,4716.3,0.001]
[1757726752290,12.99168238,4716.4,4716.3,0.001]
[1757726752993,14.22168238,4716.4,4716.3,0.001]
[1757726754189,11.87468238,4716.4,4716.3,0.001]
[1757726755583,13.10468238,4716.4,4716.3,0.001]
[1757726757061,14.33468238,4716.4,4716.3,0.001]
[1757726758381,15.56468238,4716.4,4716.3,0.001]
[1757726759906,16.79468238,4716.4,4716.3,0.001]
[1757726761274,18.02468238,4716.4,4716.3,0.001]
[1757726762668,19.25468238,4716.4,4716.3,0.001]
[1757726764200,20.48468238,4716.4,4716.3,0.001]
[1757726764609,18.23308238,4716.4,4716.3,0.001]
[1757726764910,17.49068238,4716.4,4716.3,0.001]
[1757726765432,13.69868238,4716.4,4716.3,0.2658]
[1757726765574,13.53,4716.4,4716.3,2.5356]
[1757726765973,15.51602035,4716.4,4716.3,0.001]
[1757726766386,13.98162035,4716.4,4716.3,2.5356]
[1757726766799,13.98162035,4716.4,4716.3,2.7011]
[1757726766999,16.00362035,4716.4,4716.3,2.7011]
[1757726767200,16.00362035,4716.4,4716.3,2.5356]
[1757726767406,15.21162035,4716.4,4716.3,2.5356]
[1757726767717,16.00362035,4716.4,4716.3,2.5356]
[1757726767925,15.21162035,4716.4,4716.3,2.5356]
[1757726768209,15.21162035,4716.4,4716.3,2.7011]
[1757726768411,16.44162035,4716.4,4716.3,2.5356]
[1757726768814,17.23362035,4716.4,4716.3,2.5356]
[1757726769812,18.46362035,4716.4,4716.3,2.5356]
[1757726770217,18.46362035,4716.4,4716.3,0.001]
[1757726770510,21.05258238,4716.4,4716.3,0.001]
[1757726770915,23.30418238,4716.4,4716.3,3.577]
[1757726771119,24.53418238,4716.4,4716.3,3.577]
[1757726772583,25.76418238,4716.4,4716.3,3.577]
[1757726773198,23.51258238,4716.4,4716.3,3.577]
[1757726773894,24.74258238,4716.4,4716.3,3.577]
[1757726774425,26.99418238,4716.4,4716.3,3.577]
[1757726775220,28.22418238,4716.4,4716.3,3.577]
[1757726775424,31.22418238,4716.4,4716.3,0.001]
[1757726776550,32.45418238,4716.4,4716.3,0.001]
[1757726777950,33.68418238,4716.4,4716.3,0.001]
[1757726779247,34.91418238,4716.4,4716.3,0.001]
[1757726780447,38.49018238,4716.4,4716.3,0.001]
[1757726780646,39.83903544,4716.4,4716.3,0.001]
[1757726782132,41.06903544,4716.4,4716.3,0.001]
[1757726782343,38.69858238,4716.4,4716.3,0.001]
[1757726782945,30.58818238,4716.4,4716.3,2.5706]
[1757726783148,28.74162035,4716.4,4716.3,2.5706]
[1757726783460,29.53362035,4716.4,4716.3,2.5706]
[1757726783667,30.76362035,4716.4,4716.3,2.5706]
[1757726784468,33.86712035,4716.4,4716.3,0.001]
[1757726784634,39.02701754,4716.4,4716.3,0.001]
[1757726785029,40.25701754,4716.4,4716.3,0.001]
[1757726785234,43.83301754,4716.4,4716.3,0.001]
[1757726786432,45.1478243,4716.4,4716.3,0.001]
[1757726787773,42.7809243,4716.4,4716.3,0.001]
[1757726787958,44.0109243,4716.4,4716.3,0.001]
[1757726789468,45.2409243,4716.4,4716.3,0.001]
[1757726789965,44.7898243,4716.4,4716.3,0.001]
[1757726790365,41.2138243,4716.4,4716.3,0.001]
[1757726790534,41.6649243,4716.4,4716.3,0.001]
[1757726790735,42.8949243,4716.4,4716.3,0.001]
[1757726792240,44.1249243,4716.4,4716.3,0.001]
[1757726792867,43.3883243,4716.4,4716.3,0.001]
[1757726793282,44.1460243,4716.4,4716.3,0.001]
[1757726793682,45.3760243,4716.4,4716.3,0.001]
[1757726795067,46.6060243,4716.4,4716.3,0.001]
[1757726796365,47.8360243,4716.4,4716.3,0.001]
[1757726797994,48.3083243,4716.4,4716.3,0.001]
[1757726798173,48.22351754,4716.4,4716.3,0.001]
[1757726798369,48.53011754,4716.4,4716.3,0.001]
[1757726798568,48.98121754,4716.4,4716.3,0.001]
[1757726798798,48.22351754,4716.4,4716.3,0.001]
[1757726799616,49.45351754,4716.4,4716.3,0.001]
[1757726800780,50.68351754,4716.4,4716.3,0.001]
[1757726802172,51.91351754,4716.4,4716.3,0.001]
[1757726802374,55.03811754,4716.4,4716.3,0.001]
[1757726802702,55.15711288,4716.4,4716.3,0.001]
[1757726803003,55.24191892,4716.4,4716.3,0.001]
[1757726803602,56.47191892,4716.4,4716.3,0.001]
[1757726805100,61.27591892,4716.4,4716.3,0.001]
[1757726806367,62.50591892,4716.4,4716.3,0.001]
[1757726807792,63.73591892,4716.4,4716.3,0.001]
[1757726808174,61.36901892,4716.4,4716.3,0.001]
[1757726809415,64.97801892,4716.4,4716.3,0.001]
[1757726809615,62.59901892,4716.4,4716.3,0.001]
[1757726810906,63.82901892,4716.4,4716.3,0.001]
[1757726811385,66.20801892,4716.4,4716.3,0.001]
[1757726811712,71.60575802,4716.4,4716.3,0.001]
[1757726812215,71.60575802,4716.4,4716.0,0.001]
[1757726812216,9.64135945,4716.1,4716.0,0.001]
[1757726812456,13.33435479,4716.1,4716.0,0.001]
[1757726812593,13.63205479,4716.1,4716.0,0.001]
[1757726812911,16.54058404,4716.1,4716.0,0.001]
[1757726813416,18.66098012,4716.1,4716.0,0.001]
[1757726813721,20.82087731,4716.1,4716.0,0.001]
[1757726813923,19.93048123,4716.1,4716.0,0.001]
[1757726815319,6.47262035,4715.4,4715.3,0.001]
[1757726815508,10.16461569,4715.4,4715.3,0.001]
[1757726815711,12.24035117,4715.4,4715.3,0.001]
[1757726816103,12.87661638,4715.4,4715.3,0.001]
[1757726816626,14.10661638,4715.4,4715.3,0.001]
[1757726817328,17.27535548,4715.4,4715.3,0.001]
[1757726817918,18.50535548,4715.4,4715.3,0.001]
[1757726819510,22.11415073,4715.4,4715.3,0.001]
[1757726820723,23.34415073,4715.4,4715.3,0.001]
[1757726821532,20.96515073,4715.4,4715.3,0.001]
[1757726822226,22.19515073,4715.4,4715.3,0.001]
[1757726823012,24.57415073,4715.4,4715.3,0.001]
[1757726823741,25.80415073,4715.4,4715.3,0.001]
[1757726824811,23.42515073,4715.4,4715.3,0.001]
[1757726825243,24.65515073,4715.4,4715.3,0.001]
[1757726826516,25.76636014,4715.4,4715.3,0.001]
[1757726827491,19.62622104,4715.4,4715.3,2.5397]
[1757726827945,20.85622104,4715.4,4715.3,0.001]
[1757726828135,21.30092104,4715.4,4715.3,0.001]
[1757726828537,20.85622104,4715.4,4715.3,0.001]
[1757726829149,22.08622104,4715.4,4715.3,0.001]
[1757726830049,18.95792104,4715.4,4715.3,0.001]
[1757726830351,22.86460069,4715.4,4715.3,0.001]
[1757726830551,23.31622104,4715.4,4715.3,0.001]
[1757726830756,22.07260069,4715.4,4715.3,2.5397]
[1757726830915,14.61788556,4715.4,4715.3,2.5397]
[1757726831121,17.61788556,4715.4,4715.3,2.5397]
[1757726831425,17.77362035,4715.4,4715.3,2.5397]
[1757726831846,19.00362035,4715.4,4715.3,2.5397]
[1757726832243,19.00362035,4715.4,4715.3,0.001]
[1757726832434,25.07465664,4715.4,4715.3,0.001]
[1757726832631,25.15948786,4715.4,4715.3,0.001]
[1757726832853,28.73248786,4715.4,4715.3,0.001]
[1757726833451,29.96248786,4715.4,4715.3,0.001]
[1757726833761,32.34148786,4715.4,4715.3,0.001]
[1757726833958,1.24362035,4714.9,4714.8,0.061]
[1757726834825,2.47362035,4714.9,4714.8,0.061]
[1757726835643,5.89872511,4714.9,4714.8,0.061]
[1757726836166,7.12872511,4714.9,4714.8,0.061]
[1757726836976,11.04556421,4714.9,4714.8,0.061]
[1757726837181,12.78693674,4714.9,4714.8,0.061]
[1757726837543,14.01693674,4714.9,4714.8,0.061]
[1757726837977,0.45162035,4714.5,4714.3,0.001]
[1757726838188,0.792,4714.4,4714.3,0.001]
[1757726838549,0.792,4714.4,4714.3,2.5434]
[1757726838883,2.19493594,4714.4,4714.3,0.001]
[1757726839087,6.86853594,4714.4,4714.3,0.001]
[1757726840362,8.09853594,4714.4,4714.3,0.001]
[1757726841778,9.32853594,4714.4,4714.3,0.001]
[1757726842160,9.44750977,4714.4,4714.3,0.001]
[1757726843196,10.55853594,4714.4,4714.3,0.001]
[1757726843404,10.67748928,4714.4,4714.3,0.001]
[1757726844494,11.90748928,4714.4,4714.3,0.001]
[1757726844858,14.73137371,4714.4,4714.3,2.5434]
[1757726845853,15.96137371,4714.4,4714.3,2.5434]
[1757726846183,15.96137371,4714.4,4714.3,0.2658]
[1757726846386,15.96137371,4714.4,4714.3,0.001]
[1757726846681,16.70947371,4714.4,4714.3,0.001]
[1757726846860,16.90768135,4714.4,4714.3,0.001]
[1757726847063,18.13768135,4714.4,4713.8,0.001]
[1757726847285,1.24362035,4713.9,4713.8,0.001]
[1757726847684,1.99172035,4713.9,4713.8,0.001]
[1757726848088,2.62812188,4713.9,4713.8,0.001]
[1757726848382,5.79686098,4713.9,4713.8,0.001]
[1757726848589,7.02686098,4713.9,4713.8,0.001]
[1757726848793,8.3026368,4713.9,4713.8,0.001]
[1757726849287,14.8736368,4713.9,4713.2,1.627]
[1757726849490,1.24362035,4713.3,4713.2,1.627]
[1757726849786,0.8976,4713.2,4712.9,2.2776]
[1757726849983,1.2356,4713.2,4712.9,2.2776]
[1757726850219,0.792,4713.0,4712.9,2.2776]
[1757726850417,0.792,4713.0,4712.9,2.5424]
[1757726850996,1.24362035,4713.0,4712.9,2.5424]
[1757726851504,2.47362035,4713.0,4712.9,2.5424]
[1757726852692,3.70362035,4713.0,4712.9,2.5424]
[1757726852897,4.32149037,4713.0,4712.9,2.5424]
[1757726853986,5.55149037,4713.0,4712.9,2.5424]
[1757726855436,6.78149037,4713.0,4712.9,2.5424]
[1757726856633,6.16362035,4713.0,4712.9,2.5424]
[1757726856941,7.39362035,4713.0,4712.9,2.7079]
[1757726857805,7.39362035,4713.0,4712.9,2.5424]
[1757726858322,8.62362035,4713.0,4712.9,2.5424]
[1757726859525,9.85362035,4713.0,4712.9,2.5424]
[1757726861014,11.08362035,4713.0,4712.9,2.5424]
[1757726862388,12.31362035,4713.0,4712.9,2.5424]
[1757726863930,14.24455045,4713.0,4712.8,0.061]
[1757726864125,0.792,4712.9,4712.8,3.631]
[1757726864727,0.792,4712.9,4712.8,6.3389]
[1757726865140,2.022,4712.9,4712.8,6.3389]
[1757726865319,2.022,4712.9,4712.8,6.1734]
[1757726866395,3.252,4712.9,4712.8,6.1734]
[1757726867310,3.252,4712.9,4712.8,6.3389]
[1757726867733,3.252,4712.9,4712.8,6.1734]
[1757726867900,4.482,4712.9,4712.8,6.1734]
[1757726868596,4.482,4712.9,4712.8,0.061]
[1757726868835,7.08756203,4712.9,4712.8,3.631]
[1757726869213,8.31756203,4712.9,4712.8,3.631]
[1757726870773,9.54756203,4712.9,4712.8,3.631]
[1757726872519,10.77756203,4712.9,4712.8,3.631]
[1757726873185,10.01836203,4712.9,4712.8,3.631]
[1757726873480,8.172,4712.9,4712.8,3.631]
[1757726873861,9.8517,4712.9,4712.8,3.631]
[1757726874447,9.402,4712.9,4712.8,3.631]
[1757726875156,10.632,4712.9,4712.8,3.631]
[1757726876504,11.862,4712.9,4712.8,3.631]
[1757726877484,12.3117,4712.9,4712.8,3.631]
[1757726878085,13.5417,4712.9,4712.8,3.631]
[1757726878889,13.092,4712.9,4712.8,3.631]
[1757726879363,14.322,4712.9,4712.8,3.631]
[1757726880814,15.552,4712.9,4712.8,3.631]
[1757726882113,16.782,4712.9,4712.8,3.631]
[1757726882590,16.782,4712.9,4712.8,6.1032]
[1757726883402,18.012,4712.9,4712.8,6.1032]
[1757726884115,17.22,4712.9,4712.8,6.1032]
[1757726884321,17.22,4712.9,4712.8,6.2687]
[1757726884493,17.67162035,4712.9,4712.8,6.2687]
[1757726884692,19.69362035,4712.9,4712.8,9.2687]
[1757726885216,18.90162035,4712.9,4712.8,9.2687]
[1757726885380,18.5556,4712.9,4712.8,9.2687]
[1757726885574,18.5556,4712.9,4712.8,9.90489235]
[1757726886203,19.68,4712.9,4712.8,39.90489235]
[1757726886404,19.68,4712.9,4712.8,36.33489235]
[1757726886809,19.68,4712.9,4712.8,9.73739235]
[1757726886983,20.92362035,4712.9,4712.8,6.16939235]
[1757726887183,20.92362035,4712.9,4712.8,9.1012]
[1757726887483,20.92362035,4712.9,4712.8,9.2667]
[1757726887703,22.15362035,4712.9,4712.8,9.2667]
[1757726887924,22.15362035,4712.9,4712.8,9.1012]
[1757726888936,22.15362035,4712.9,4712.8,9.2667]
[1757726889120,23.38362035,4712.9,4712.8,9.2667]
[1757726889635,23.38362035,4712.9,4712.8,9.1012]
[1757726890070,22.59162035,4712.9,4712.8,9.2667]
[1757726890716,23.82162035,4712.9,4712.8,9.2667]
[1757726891270,23.37,4712.9,4712.8,9.2667]
[1757726892318,24.6,4712.9,4712.8,5.5332]
[1757726892551,25.84362035,4712.9,4712.8,5.2684]
[1757726892751,25.84362035,4712.9,4712.8,6.628]
[1757726893234,25.84362035,4712.9,4712.8,6.8928]
[1757726893525,25.05162035,4712.9,4712.8,9.1002]
[1757726893742,26.28162035,4712.9,4712.8,9.1002]